bitfinex-derivatives/quotes_BTCF0:USTF0_20260315
["timestamp","ask_amount","ask_price","bid_price","bid_amount"]
[1773579225583,0.001,71658.0,71650.0,0.0014]
[1773579227089,0.0224576,71660.0,71650.0,0.0014]
[1773579227289,0.0234576,71660.0,71650.0,0.0014]
[1773579228090,0.001,71658.0,71650.0,0.0014]
[1773579229380,0.001,71658.0,71650.0,0.043263]
[1773579229676,0.001,71658.0,71650.0,0.04123567]
[1773579229989,0.0224576,71660.0,71650.0,0.04123567]
[1773579230189,0.0234576,71660.0,71650.0,0.04123567]
[1773579230777,0.001,71658.0,71650.0,0.04123567]
[1773579231481,0.02139117,71659.0,71627.0,0.041876]
[1773579231689,0.001,71660.0,71627.0,0.041876]
[1773579231690,0.02101142,71641.0,71627.0,0.041877]
[1773579232082,0.02101142,71641.0,71628.0,0.041876]
[1773579232991,0.02101142,71641.0,71633.0,0.00367]
[1773579233294,0.19557796,71640.0,71633.0,0.00367]
[1773579233479,0.19557796,71639.0,71633.0,0.00367]
[1773579233684,0.19557796,71638.0,71633.0,0.00367]
[1773579233885,0.00367,71636.0,71633.0,0.00367]
[1773579245194,0.041867,71645.0,71633.0,0.00367]
[1773579245396,0.0294566,71650.0,71633.0,0.00367]
[1773579245397,0.1237976,71644.0,71640.0,0.041869]
[1773579245596,0.041862,71652.0,71634.0,0.03912959]
[1773579245597,0.043263,71652.0,71634.0,0.03912959]
[1773579245902,0.0014,71653.0,71642.0,0.041868]
[1773579246596,0.043262,71653.0,71640.0,0.041869]
[1773579246796,0.043262,71653.0,71639.0,0.03912959]
[1773579247100,0.0014,71654.0,71642.0,0.041868]
[1773579247394,0.0014,71654.0,71642.0,0.08099759]
[1773579247587,0.041861,71655.0,71642.0,0.08099759]
[1773579247791,0.043261,71655.0,71642.0,0.08099759]
[1773579247992,0.0014,71655.0,71642.0,0.08099759]
[1773579249101,0.04022964,71661.0,71643.0,0.03912959]
[1773579249102,0.0014,71659.0,71643.0,0.03912959]
[1773579249308,0.041859,71658.0,71643.0,0.03912959]
[1773579249504,0.041859,71658.0,71645.0,0.041866]
[1773579250208,0.0014,71659.0,71641.0,0.03912959]
[1773579250406,0.043258,71660.0,71647.0,0.041865]
[1773579250607,0.043258,71660.0,71647.0,0.08099459]
[1773579251710,0.044258,71660.0,71647.0,0.08099459]
[1773579252106,0.043258,71660.0,71647.0,0.08099459]
[1773579252310,0.041858,71659.0,71647.0,0.08099459]
[1773579260919,0.041858,71659.0,71647.0,0.041865]
[1773579261517,0.18910192,71658.0,71647.0,0.041865]
[1773579261718,0.18910192,71657.0,71647.0,0.041865]
[1773579261916,0.043258,71660.0,71645.0,0.0014]
[1773579262119,0.23095741,71659.0,71645.0,0.0014]
[1773579262314,0.23095841,71658.0,71647.0,0.041865]
[1773579262520,0.041859,71658.0,71647.0,0.0411667]
[1773579267830,0.03379747,71657.0,71632.0,0.00367]
[1773579268135,0.041861,71654.0,71642.0,0.041868]
[1773579271818,0.041861,71654.0,71644.0,0.04074824]
[1773579272425,0.04326,71656.0,71644.0,0.04074824]
[1773579272729,0.19000103,71655.0,71644.0,0.04074824]
[1773579272935,0.041861,71655.0,71643.0,0.041867]
[1773579273137,0.19000173,71654.0,71649.0,0.00191356]
[1773579273435,0.19000173,71653.0,71644.0,0.041867]
[1773579273633,0.19000173,71652.0,71644.0,0.041867]
[1773579273835,0.041861,71655.0,71642.0,0.08261624]
[1773579274038,0.18975845,71654.0,71642.0,0.08261624]
[1773579274231,0.18975845,71653.0,71642.0,0.08261624]
[1773579274432,0.18975845,71652.0,71642.0,0.08261624]
[1773579274632,0.041861,71655.0,71642.0,0.08261624]
[1773579274633,0.18975845,71651.0,71642.0,0.08261624]
[1773579274831,0.041861,71655.0,71642.0,0.08261624]
[1773579275029,0.18983162,71654.0,71642.0,0.08261624]
[1773579275233,0.18983162,71653.0,71642.0,0.08261624]
[1773579275435,0.18983162,71652.0,71642.0,0.08261624]
[1773579275634,0.18983162,71651.0,71642.0,0.08261624]
[1773579275939,0.18983162,71650.0,71644.0,0.041867]
[1773579276142,0.0014,71656.0,71645.0,0.041866]
[1773579276441,0.18996734,71655.0,71645.0,0.041866]
[1773579276640,0.18996734,71654.0,71645.0,0.041866]
[1773579276840,0.18996734,71653.0,71645.0,0.041866]
[1773579277042,0.18996734,71652.0,71645.0,0.041866]
[1773579277245,0.18996734,71651.0,71645.0,0.041866]
[1773579277539,0.18996734,71650.0,71645.0,0.041866]
[1773579277730,0.04326,71656.0,71645.0,0.041866]
[1773579277930,0.18999291,71655.0,71645.0,0.041866]
[1773579278132,0.18999291,71654.0,71645.0,0.041866]
[1773579278339,0.18999291,71653.0,71645.0,0.041866]
[1773579278640,0.18999291,71652.0,71645.0,0.041866]
[1773579278939,0.18999291,71651.0,71645.0,0.041866]
[1773579279144,0.18999291,71650.0,71645.0,0.041866]
[1773579279346,0.18999291,71649.0,71645.0,0.041866]
[1773579279544,0.18999291,71648.0,71645.0,0.041866]
[1773579279748,0.04326,71656.0,71645.0,0.041866]
[1773579279933,0.1900215,71655.0,71645.0,0.041866]
[1773579280134,0.1900215,71654.0,71643.0,0.041867]
[1773579280341,0.04326,71656.0,71643.0,0.041867]
[1773579282537,0.041861,71655.0,71643.0,0.041867]
[1773579297049,0.041862,71654.0,71643.0,0.041867]
[1773579302468,0.04326,71656.0,71643.0,0.041867]
[1773579302664,0.0014,71657.0,71648.0,0.041864]
[1773579302969,0.0014,71657.0,71646.0,0.08200317]
[1773579305968,0.02656235,71658.0,71646.0,0.041865]
[1773579306167,0.0014,71674.0,71649.0,0.03824981]
[1773579306374,0.041852,71670.0,71657.0,0.08010881]
[1773579306860,0.041851,71672.0,71657.0,0.03824981]
[1773579307060,0.02124629,71678.0,71655.0,0.0014]
[1773579307061,0.04325,71674.0,71656.0,0.03824981]
[1773579307268,0.04185,71674.0,71662.0,0.03824981]
[1773579307666,0.001,71670.0,71662.0,0.03824981]
[1773579307974,0.04185,71674.0,71662.0,0.08010581]
[1773579308370,0.04285,71674.0,71662.0,0.08010581]
[1773579308964,0.04185,71674.0,71662.0,0.08010581]
[1773579309462,0.00366,71677.0,71662.0,0.08010581]
[1773579309463,0.00366,71677.0,71662.0,0.03824981]
[1773579310177,0.0014,71679.0,71662.0,0.03824981]
[1773579311074,0.041848,71676.0,71664.0,0.08010481]
[1773579312974,0.041848,71676.0,71665.0,0.03824981]
[1773579313375,0.041848,71677.0,71665.0,0.03824981]
[1773579314177,0.00069753,71681.0,71662.0,0.03824981]
[1773579315684,0.041847,71679.0,71661.0,0.0014]
[1773579315981,0.00069753,71681.0,71661.0,0.03964981]
[1773579316984,0.041847,71678.0,71665.0,0.041855]
[1773579318986,0.041847,71678.0,71666.0,0.041854]
[1773579322392,0.041846,71680.0,71667.0,0.07717814]
[1773579322682,0.041847,71679.0,71668.0,0.07857814]
[1773579322875,0.041847,71679.0,71669.0,0.0014]
[1773579324888,0.041847,71678.0,71669.0,0.0014]
[1773579334395,0.00069753,71681.0,71669.0,0.0014]
[1773579334396,0.041848,71677.0,71669.0,0.0014]
[1773579342499,0.041848,71676.0,71669.0,0.0014]
[1773579343401,0.00069753,71681.0,71669.0,0.0014]
[1773579343608,0.041848,71677.0,71669.0,0.0014]
[1773579344506,0.041849,71675.0,71668.0,0.0014]
[1773579348505,0.041849,71675.0,71658.0,0.03532514]
[1773579348808,0.2508391,71674.0,71659.0,0.0014]
[1773579349010,0.2508391,71673.0,71659.0,0.0014]
[1773579349211,0.2508391,71672.0,71659.0,0.0014]
[1773579349404,0.2508391,71671.0,71660.0,0.041857]
[1773579349605,0.2508391,71670.0,71661.0,0.041856]
[1773579349806,0.2508391,71669.0,71662.0,0.0014]
[1773579350007,0.2508391,71668.0,71663.0,0.0014]
[1773579350306,0.2508391,71667.0,71653.0,0.03532514]
[1773579350502,0.2508391,71666.0,71654.0,0.0014]
[1773579350703,0.041852,71671.0,71654.0,0.0014]
[1773579350914,0.24779121,71670.0,71655.0,0.0014]
[1773579351103,0.24779121,71669.0,71659.0,0.041858]
[1773579351301,0.24779121,71668.0,71659.0,0.041858]
[1773579351499,0.24779121,71667.0,71660.0,0.0014]
[1773579351703,0.24779121,71666.0,71661.0,0.0014]
[1773579351904,0.041852,71671.0,71653.0,0.03532514]
[1773579352103,0.24778435,71670.0,71659.0,0.041858]
[1773579352298,0.041853,71668.0,71656.0,0.04186]
[1773579352504,0.041853,71668.0,71646.0,0.08171069]
[1773579352505,0.24778435,71667.0,71657.0,0.041859]
[1773579352706,0.24778435,71666.0,71658.0,0.0014]
[1773579352907,0.041852,71671.0,71659.0,0.043258]
[1773579353207,0.24742494,71670.0,71661.0,0.00367]
[1773579353414,0.23094195,71669.0,71661.0,0.00367]
[1773579353604,0.041851,71671.0,71661.0,0.00367]
[1773579354513,0.041851,71671.0,71660.0,0.12496769]
[1773579355214,0.041851,71671.0,71660.0,0.08311069]
[1773579356317,0.041851,71671.0,71660.0,0.0014]
[1773579357612,0.041853,71668.0,71660.0,0.0014]
[1773579360813,0.041852,71670.0,71660.0,0.0014]
[1773579361018,0.00366,71680.0,71661.0,0.08171069]
[1773579361222,0.041847,71679.0,71668.0,0.041852]
[1773579361514,0.00366,71680.0,71669.0,0.08311069]
[1773579361719,0.08359511,71680.0,71659.0,0.045528]
[1773579361920,0.04185,71673.0,71660.0,0.041857]
[1773579362916,0.04185,71673.0,71661.0,0.041857]
[1773579366825,0.07993511,71672.0,71659.0,0.00367]
[1773579367214,0.041852,71670.0,71660.0,0.0014]
[1773579367516,0.041853,71668.0,71660.0,0.0014]
[1773579370625,0.07993511,71676.0,71660.0,0.0014]
[1773579370820,0.2758429,71675.0,71660.0,0.0014]
[1773579371020,0.041851,71672.0,71660.0,0.0014]
[1773579371227,0.2758429,71671.0,71660.0,0.0014]
[1773579371522,0.2758429,71670.0,71660.0,0.0014]
[1773579371729,0.2758429,71669.0,71660.0,0.0014]
[1773579372030,0.041852,71670.0,71660.0,0.0014]
[1773579372221,0.27280131,71669.0,71660.0,0.0014]
[1773579372420,0.041854,71666.0,71660.0,0.0014]
[1773579373623,0.041854,71666.0,71660.0,0.0024]
[1773579375334,0.041854,71666.0,71660.0,0.0014]
[1773579378130,0.041855,71665.0,71660.0,0.0014]
[1773579382831,0.041855,71665.0,71661.0,0.0014]
[1773579383026,0.041856,71664.0,71662.0,0.0014]
[1773579383231,0.041856,71664.0,71663.0,0.0014]
[1773579383438,0.039926,71664.0,71663.0,0.0014]
[1773579389436,0.039926,71664.0,71659.0,0.00367]
[1773579389634,0.03338852,71664.0,71660.0,0.0014]
[1773579389834,0.02030293,71664.0,71660.0,0.0014]
[1773579390035,0.08030233,71671.0,71660.0,0.0014]
[1773579390342,0.2714743,71670.0,71660.0,0.0014]
[1773579390542,0.2714743,71669.0,71660.0,0.0014]
[1773579390743,0.08030233,71671.0,71660.0,0.0014]
[1773579391042,0.041856,71664.0,71660.0,0.0014]
[1773579391232,0.041856,71664.0,71652.0,0.041862]
[1773579391436,0.041856,71664.0,71653.0,0.0014]
[1773579394243,0.041856,71663.0,71657.0,0.00367]
[1773579394943,0.00367,71660.0,71657.0,0.00367]
[1773579396538,0.00367,71660.0,71657.0,0.00467]
[1773579396736,0.041857,71662.0,71653.0,0.0014]
[1773579398445,0.045527,71662.0,71653.0,0.0014]
[1773579400049,0.045527,71662.0,71652.0,0.14494294]
[1773579400349,0.045527,71662.0,71646.0,0.07509592]
[1773579400350,0.00367,71662.0,71653.0,0.0014]
[1773579400544,0.00367,71662.0,71654.0,0.0014]
[1773579401144,0.041858,71660.0,71655.0,0.0014]
[1773579401346,0.041858,71660.0,71656.0,0.0014]
[1773579401649,0.041858,71660.0,71657.0,0.0014]
[1773579401850,0.041858,71660.0,71658.0,0.0014]
[1773579402047,0.041858,71660.0,71648.0,0.041864]
[1773579402238,0.041858,71660.0,71649.0,0.0014]
[1773579402438,0.041858,71660.0,71649.0,0.08322027]
[1773579404653,0.031858,71660.0,71649.0,0.08322027]
[1773579405654,0.08030233,71666.0,71649.0,0.08322027]
[1773579405856,0.041859,71658.0,71649.0,0.0014]
[1773579406546,0.041859,71658.0,71650.0,0.0014]
[1773579406945,0.041859,71658.0,71647.0,0.142169]
[1773579407146,0.041859,71658.0,71651.0,0.0014]
[1773579408758,0.041858,71660.0,71651.0,0.0014]
[1773579412859,0.041858,71659.0,71651.0,0.0014]
[1773579415358,0.00367,71661.0,71651.0,0.0014]
[1773579415657,0.04186,71657.0,71647.0,0.14333882]
[1773579415864,0.04186,71657.0,71652.0,0.119]
[1773579416362,0.04186,71657.0,71653.0,0.0014]
[1773579416563,0.04186,71657.0,71654.0,0.0014]
[1773579416760,0.04186,71657.0,71652.0,0.119]
[1773579416965,0.04186,71657.0,71653.0,0.0014]
[1773579417167,0.04186,71657.0,71654.0,0.0014]
[1773579417368,0.04186,71657.0,71655.0,0.0014]
[1773579417667,0.04186,71657.0,71652.0,0.119]
[1773579417857,0.04186,71657.0,71653.0,0.0014]
[1773579418063,0.04186,71657.0,71652.0,0.119]
[1773579418266,0.04186,71657.0,71653.0,0.0014]
[1773579418770,0.04186,71657.0,71654.0,0.0014]
[1773579418970,0.04186,71657.0,71643.0,0.041867]
[1773579419172,0.04186,71657.0,71644.0,0.0014]
[1773579419371,0.04186,71657.0,71645.0,0.119]
[1773579419564,0.04186,71657.0,71645.0,0.1754318]
[1773579420477,0.07342674,71676.0,71653.0,0.07390221]
[1773579420665,0.041855,71665.0,71654.0,0.0014]
[1773579422374,0.041854,71667.0,71658.0,0.00367]
[1773579423183,0.00367,71661.0,71658.0,0.00367]
[1773579424278,0.041854,71666.0,71654.0,0.043261]
[1773579426480,0.041854,71666.0,71654.0,0.046931]
[1773579426681,0.041854,71666.0,71654.0,0.1901019]
[1773579426882,0.041854,71666.0,71654.0,0.1482409]
[1773579427080,0.041855,71664.0,71654.0,0.1482409]
[1773579435390,0.041856,71663.0,71654.0,0.1482409]
[1773579437494,0.07342674,71674.0,71654.0,0.1482409]
[1773579437693,0.07342674,71672.0,71655.0,0.0014]
[1773579437890,0.07342674,71656.0,71647.0,0.14338696]
[1773579438090,0.041867,71645.0,71637.0,0.14666919]
[1773579438287,0.041866,71646.0,71638.0,0.0014]
[1773579438488,0.041866,71646.0,71639.0,0.0014]
[1773579438688,0.041866,71646.0,71640.0,0.0014]
[1773579438889,0.041866,71646.0,71641.0,0.0014]
[1773579439288,0.041866,71646.0,71642.0,0.0014]
[1773579439593,0.041866,71646.0,71643.0,0.0014]
[1773579439796,0.041866,71646.0,71644.0,0.0014]
[1773579440095,0.041866,71646.0,71645.0,0.0014]
[1773579440595,0.045536,71646.0,71645.0,0.0014]
[1773579440982,0.044136,71646.0,71645.0,0.0014]
[1773579441592,0.044136,71646.0,71632.0,0.18560951]
[1773579441791,0.041867,71644.0,71633.0,0.0014]
[1773579442096,0.041867,71644.0,71633.0,0.19751424]
[1773579446996,0.041867,71644.0,71633.0,0.0014]
[1773579448092,0.00367,71647.0,71633.0,0.0014]
[1773579448501,0.07492915,71647.0,71634.0,0.0014]
[1773579448891,0.00367,71647.0,71634.0,0.0014]
[1773579450000,0.041867,71644.0,71634.0,0.0014]
[1773579451700,0.041868,71643.0,71634.0,0.0014]
[1773579453301,0.041868,71642.0,71634.0,0.0014]
[1773579455704,0.041868,71642.0,71634.0,0.15950884]
[1773579458599,0.041869,71641.0,71634.0,0.15950884]
[1773579458907,0.04187,71640.0,71634.0,0.15950884]
[1773579459104,0.07125915,71641.0,71624.0,0.00367]
[1773579459398,0.07125915,71641.0,71624.0,0.05100052]
[1773579459596,0.041871,71638.0,71625.0,0.0014]
[1773579459798,0.041871,71638.0,71625.0,0.22713759]
[1773579459999,0.041871,71638.0,71626.0,0.07706802]
[1773579460298,0.041871,71638.0,71627.0,0.07706802]
[1773579460499,0.041871,71638.0,71627.0,0.29420546]
[1773579464802,0.00367,71647.0,71628.0,0.07706802]
[1773579465015,0.00367,71647.0,71628.0,0.56921954]
[1773579466106,0.04187,71640.0,71628.0,0.56921954]
[1773579466307,0.04187,71639.0,71628.0,0.56921954]
[1773579467005,0.041871,71638.0,71628.0,0.10035592]
[1773579472304,0.041871,71637.0,71628.0,0.10035592]
[1773579475011,0.07125915,71646.0,71628.0,0.10035592]
[1773579475413,0.041871,71638.0,71628.0,0.10035592]
[1773579478911,0.041873,71635.0,71629.0,0.0014]
[1773579479116,0.041873,71634.0,71629.0,0.024993]
[1773579479515,0.041873,71634.0,71630.0,0.0014]
[1773579479814,0.041873,71634.0,71631.0,0.0014]
[1773579480009,0.041873,71634.0,71632.0,0.0014]
[1773579480309,0.00367,71647.0,71624.0,5.9e-07]
[1773579480310,0.041869,71640.0,71624.0,5.9e-07]
[1773579480516,0.041876,71629.0,71625.0,0.0014]
[1773579480708,0.07616892,71635.0,71626.0,0.0014]
[1773579480908,0.07616892,71635.0,71617.0,0.18148343]
[1773579481202,0.041874,71632.0,71618.0,0.0014]
[1773579481408,0.041874,71632.0,71618.0,0.39307639]
[1773579483609,0.041875,71630.0,71618.0,0.39307639]
[1773579483814,0.08350892,71638.0,71618.0,0.11145802]
[1773579484014,0.041874,71632.0,71618.0,0.11145802]
[1773579484218,0.041874,71632.0,71618.0,0.41658726]
[1773579484418,0.041874,71632.0,71619.0,0.07514535]
[1773579484618,0.041874,71632.0,71620.0,0.07374535]
[1773579484917,0.00734,71638.0,71620.0,0.52502307]
[1773579485618,0.07616892,71642.0,71620.0,0.52502307]
[1773579486216,0.07616892,71642.0,71620.0,0.08015398]
[1773579486217,0.041876,71629.0,71620.0,0.08015398]
[1773579487118,0.041876,71629.0,71620.0,0.00640863]
[1773579490716,0.041876,71629.0,71620.0,0.29997185]
[1773579491020,0.041876,71629.0,71620.0,0.46295616]
[1773579491921,0.07616892,71635.0,71620.0,0.46295616]
[1773579493419,0.04188,71623.0,71619.0,1.6e-07]
[1773579493618,0.04188,71621.0,71620.0,0.0014]
[1773579493918,0.07616892,71630.0,71620.0,0.0014]
[1773579494123,0.07616892,71630.0,71612.0,0.61424]
[1773579494124,0.041881,71620.0,71612.0,0.61424]
[1773579494323,0.07616892,71630.0,71613.0,0.0014]
[1773579494524,0.07616892,71635.0,71613.0,0.07514535]
[1773579494827,0.07616892,71635.0,71614.0,0.07374535]
[1773579494828,0.041877,71627.0,71614.0,0.07374535]
[1773579495219,0.041877,71627.0,71614.0,0.11562935]
[1773579495423,0.041878,71626.0,71614.0,0.11562935]
[1773579496324,0.041878,71626.0,71615.0,0.041884]
[1773579496827,0.041878,71626.0,71614.0,0.07374535]
[1773579499025,0.041878,71626.0,71614.0,0.23485481]
[1773579499222,0.07616892,71635.0,71614.0,0.23485481]
[1773579499526,0.041878,71625.0,71614.0,0.23485481]
[1773579500221,0.041877,71627.0,71614.0,0.27673881]
[1773579501217,0.041878,71626.0,71614.0,0.27673881]
[1773579502623,0.041878,71626.0,71614.0,0.20299346]
[1773579505328,0.041878,71626.0,71615.0,0.041884]
[1773579509523,0.00734,71638.0,71618.0,0.07790084]
[1773579509833,0.26741178,71637.0,71618.0,0.07790084]
[1773579510029,0.26741178,71636.0,71619.0,0.0014]
[1773579510232,0.07812437,71639.0,71619.0,0.0014]
[1773579510434,0.041877,71628.0,71619.0,0.0014]
[1773579511133,0.07812437,71639.0,71619.0,0.0014]
[1773579511437,0.041876,71630.0,71619.0,0.0014]
[1773579511732,0.2710994,71638.0,71619.0,0.0014]
[1773579511733,0.041876,71629.0,71619.0,0.0014]
[1773579512425,0.07812437,71637.0,71619.0,0.0014]
[1773579512625,0.041876,71628.0,71619.0,0.0014]
[1773579513027,0.041877,71627.0,71619.0,0.0014]
[1773579515738,0.041876,71629.0,71619.0,0.0014]
[1773579519631,0.041877,71628.0,71619.0,0.0014]
[1773579528054,0.07812437,71632.0,71619.0,0.0014]
[1773579528256,0.26055781,71631.0,71619.0,0.0014]
[1773579528559,0.07812437,71631.0,71619.0,0.0014]
[1773579528955,0.041877,71628.0,71619.0,0.0014]
[1773579536254,0.041878,71626.0,71616.0,0.17500009]
[1773579536447,0.041878,71626.0,71617.0,0.0014]
[1773579536859,0.041878,71626.0,71618.0,0.0014]
[1773579537658,0.041878,71626.0,71619.0,0.0014]
[1773579537858,0.11642766,71626.0,71619.0,0.0014]
[1773579538865,0.041877,71628.0,71619.0,0.0014]
[1773579539360,0.11642666,71628.0,71619.0,0.0014]
[1773579539865,0.11642666,71628.0,71615.0,0.041884]
[1773579540165,0.07454966,71627.0,71616.0,0.0014]
[1773579540466,0.11642666,71627.0,71616.0,0.0014]
[1773579540862,0.11642666,71627.0,71615.0,0.041884]
[1773579541156,0.11642666,71627.0,71616.0,0.0014]
[1773579541360,0.11642666,71627.0,71615.0,0.041884]
[1773579541552,0.11642666,71627.0,71616.0,0.0014]
[1773579541869,0.041877,71627.0,71616.0,0.0014]
[1773579542064,0.07454966,71626.0,71616.0,0.0014]
[1773579542366,0.07454966,71626.0,71615.0,0.041884]
[1773579542559,0.07454966,71626.0,71616.0,0.0014]
[1773579542866,0.07454966,71626.0,71615.0,0.041884]
[1773579543067,0.07454966,71626.0,71616.0,0.0014]
[1773579545164,0.041876,71629.0,71616.0,0.0014]
[1773579545364,0.041877,71628.0,71616.0,0.043283]
[1773579556272,0.041877,71627.0,71616.0,0.043283]
[1773579557663,0.041877,71627.0,71615.0,0.21583752]
[1773579557863,0.041877,71627.0,71616.0,0.0014]
[1773579558064,0.041877,71627.0,71615.0,0.21583752]
[1773579558273,0.041877,71627.0,71617.0,0.0014]
[1773579558666,0.041877,71627.0,71618.0,0.0014]
[1773579559165,0.041877,71627.0,71619.0,0.0014]
[1773579559568,0.041877,71627.0,71616.0,0.041883]
[1773579559872,0.041877,71627.0,71620.0,0.0014]
[1773579560464,0.041876,71629.0,71620.0,0.0014]
[1773579561777,0.11584689,71629.0,71620.0,0.0014]
[1773579564166,0.041875,71631.0,71620.0,0.0014]
[1773579564371,0.041875,71630.0,71620.0,0.0014]
[1773579566482,0.041876,71629.0,71620.0,0.0014]
[1773579580187,0.07397089,71628.0,71616.0,0.041883]
[1773579580391,0.07397089,71628.0,71615.0,0.14237386]
[1773579580595,0.07397089,71628.0,71616.0,0.0014]
[1773579580893,0.07397089,71628.0,71612.0,0.48388175]
[1773579581081,0.07397089,71628.0,71617.0,0.0014]
[1773579581593,0.07397089,71628.0,71618.0,0.0014]
[1773579581992,0.07397089,71628.0,71617.0,0.041883]
[1773579582191,0.07397089,71628.0,71618.0,0.0014]
[1773579582492,0.07397089,71628.0,71617.0,0.041883]
[1773579582693,0.07397089,71628.0,71618.0,0.0014]
[1773579583097,0.07397089,71628.0,71619.0,0.0014]
[1773579583490,0.07397089,71628.0,71617.0,0.041883]
[1773579583693,0.07397089,71628.0,71618.0,0.0014]
[1773579584089,0.041876,71629.0,71619.0,0.0014]
[1773579584592,0.041876,71629.0,71620.0,0.0014]
[1773579586800,0.01029634,71629.0,71620.0,0.0014]
[1773579587001,0.07397089,71664.0,71621.0,0.14101703]
[1773579587201,0.07397089,71643.0,71629.0,0.041875]
[1773579587509,0.031867,71644.0,71630.0,0.0014]
[1773579587808,0.10583789,71644.0,71631.0,0.041874]
[1773579590722,0.07397089,71651.0,71630.0,0.0014]
[1773579590919,0.07397089,71651.0,71630.0,0.18333277]
[1773579591517,0.07397089,71651.0,71636.0,0.00367]
[1773579591717,0.07397089,71651.0,71637.0,0.0014]
[1773579592116,0.07079855,71648.0,71637.0,0.0014]
[1773579592312,0.07079855,71648.0,71637.0,0.043271]
[1773579597612,0.07079855,71648.0,71616.0,0.041883]
[1773579597818,0.04187,71640.0,71618.0,0.06919243]
[1773579598019,0.07079855,71646.0,71619.0,0.06919243]
[1773579598219,0.041867,71645.0,71618.0,0.06919243]
[1773579598414,0.041867,71644.0,71631.0,0.041874]
[1773579598622,0.041868,71643.0,71632.0,0.0014]
[1773579601026,0.07079855,71656.0,71632.0,0.0014]
[1773579601235,0.04491761,71654.0,71618.0,0.18328161]
[1773579601531,0.04491761,71630.0,71619.0,0.0014]
[1773579601724,0.04432921,71629.0,71620.0,0.0014]
[1773579601918,0.00367,71639.0,71620.0,0.07059243]
[1773579602327,0.00367,71639.0,71630.0,0.00977771]
[1773579602528,0.00367,71639.0,71631.0,0.0014]
[1773579604629,0.04554,71639.0,71631.0,0.0014]
[1773579604826,0.04187,71639.0,71631.0,0.0014]
[1773579605828,0.08751583,71641.0,71631.0,0.0014]
[1773579606032,0.04501303,71653.0,71631.0,0.0014]
[1773579606224,0.0014,71655.0,71631.0,0.0014]
[1773579606225,0.00734,71640.0,71631.0,0.0014]
[1773579606427,0.00734,71640.0,71632.0,0.00977771]
[1773579608334,0.041869,71641.0,71632.0,0.00977771]
[1773579609836,0.00367,71640.0,71632.0,0.00977771]
[1773579611431,0.00367,71640.0,71631.0,0.0014]
[1773579611432,0.00367,71640.0,71633.0,0.041873]
[1773579612234,0.041866,71647.0,71638.0,0.00977771]
[1773579612433,0.041866,71647.0,71639.0,0.0014]
[1773579613139,0.041866,71646.0,71639.0,0.0014]
[1773579615346,0.041866,71646.0,71641.0,0.00367]
[1773579615845,0.041865,71648.0,71641.0,0.00367]
[1773579616051,0.00367,71644.0,71641.0,0.00367]
[1773579617148,0.041866,71646.0,71639.0,0.0014]
[1773579617442,0.041865,71648.0,71640.0,0.00977771]
[1773579618347,0.041863,71652.0,71640.0,0.00977771]
[1773579618548,0.041863,71651.0,71640.0,0.05164671]
[1773579619542,0.041863,71651.0,71640.0,0.05531671]
[1773579620046,0.04527382,71655.0,71640.0,0.00367]
[1773579620344,0.041862,71653.0,71642.0,0.041868]
[1773579620549,0.08713482,71655.0,71642.0,0.041868]
[1773579620850,0.041861,71654.0,71644.0,0.00977771]
[1773579621039,0.04254176,71660.0,71644.0,0.00977771]
[1773579621242,0.041861,71655.0,71644.0,0.00977771]
[1773579621447,0.041861,71654.0,71644.0,0.00977771]
[1773579622244,0.04186,71656.0,71644.0,0.00977771]
[1773579622440,0.04240919,71660.0,71642.0,0.18844391]
[1773579622644,0.04240919,71660.0,71641.0,0.06939183]
[1773579622840,0.04240919,71660.0,71644.0,0.041867]
[1773579623241,0.04240919,71660.0,71652.0,0.00977771]
[1773579623454,0.04240919,71660.0,71653.0,0.0014]
[1773579623950,0.04186,71657.0,71653.0,0.0014]
[1773579624552,0.04240919,71660.0,71653.0,0.0014]
[1773579624553,0.041858,71659.0,71653.0,0.0014]
[1773579624953,0.041859,71658.0,71653.0,0.0014]
[1773579626555,0.04186,71657.0,71653.0,0.0014]
[1773579628254,0.041859,71659.0,71653.0,0.0014]
[1773579630554,0.045525,71664.0,71654.0,0.00977771]
[1773579634663,0.041856,71663.0,71654.0,0.00977771]
[1773579635865,0.00367,71664.0,71654.0,0.00977771]
[1773579636070,0.045525,71664.0,71654.0,0.00977771]
[1773579636666,0.045525,71664.0,71653.0,0.0014]
[1773579637860,0.041856,71663.0,71653.0,0.0014]
[1773579649276,0.00367,71664.0,71653.0,0.043261]
[1773579649481,0.00367,71664.0,71656.0,0.00977771]
[1773579654593,0.041853,71669.0,71657.0,0.041859]
[1773579654994,0.06592552,71671.0,71658.0,0.041859]
[1773579655196,0.06592552,71671.0,71659.0,0.041858]
[1773579655393,0.06592552,71671.0,71660.0,0.05303471]
[1773579655592,0.041852,71671.0,71661.0,0.0014]
[1773579656702,0.02029056,71676.0,71661.0,0.0014]
[1773579656896,0.041851,71672.0,71661.0,0.0014]
[1773579659108,0.041851,71672.0,71661.0,0.043257]
[1773579659605,0.02029056,71676.0,71664.0,0.00977771]
[1773579660506,0.02029056,71676.0,71661.0,0.0014]
[1773579662096,0.04185,71674.0,71663.0,0.041856]
[1773579662508,0.04185,71674.0,71664.0,0.00977771]
[1773579663902,0.06213856,71676.0,71664.0,0.05163271]
[1773579664102,0.041848,71676.0,71664.0,0.05163271]
[1773579664298,0.041849,71675.0,71664.0,0.05163271]
[1773579664498,0.041849,71675.0,71664.0,0.00977771]
[1773579665002,0.04185,71674.0,71664.0,0.00977771]
[1773579665311,0.04185,71673.0,71664.0,0.00977771]
[1773579665811,0.04185,71673.0,71661.0,0.043257]
[1773579667208,0.00069753,71681.0,71665.0,0.00977771]
[1773579667412,0.041846,71680.0,71665.0,0.00977771]
[1773579667612,0.041846,71680.0,71662.0,0.06474351]
[1773579667913,0.00069753,71681.0,71662.0,0.06474351]
[1773579668409,5.3e-07,71681.0,71666.0,0.06496855]
[1773579668716,5.3e-07,71681.0,71672.0,0.04185]
[1773579668908,5.3e-07,71681.0,71673.0,0.04325]